bitfinex/quotes_ETHUSD_20240926
["timestamp","ask_amount","ask_price","bid_price","bid_amount"]
[1727309419114,4.7908,2590.6,2590.5,50.0]
[1727309419641,3.8601,2590.6,2590.5,50.06250003]
[1727309419999,3.85997,2590.7,2590.5,50.06250003]
[1727309420926,3.85997,2590.7,2590.5,51.07480003]
[1727309421234,3.8601,2590.6,2590.5,50.06250003]
[1727309421439,3.85997,2590.7,2590.5,50.06250003]
[1727309422299,3.85981,2590.8,2590.5,50.06250003]
[1727309423930,7.71969,2590.8,2590.5,50.06250003]
[1727309424134,3.85981,2590.8,2590.5,50.06250003]
[1727309428175,3.85958,2591.0,2590.6,0.9267]
[1727309428176,3.8596,2591.0,2590.6,0.9267]
[1727309428461,3.8596,2591.0,2590.6,0.98975406]
[1727309428956,3.85942,2591.1,2590.6,0.98975406]
[1727309429124,4.11328983,2591.1,2590.6,0.06305406]
[1727309429325,3.85996,2590.7,2590.6,0.06305406]
[1727309430729,3.85981,2590.8,2590.6,1.06495406]
[1727309430924,3.85967,2590.9,2590.6,1.06495406]
[1727309431126,3.85994,2590.8,2590.6,0.06305406]
[1727309431658,3.85992,2590.8,2590.6,0.06305406]
[1727309431837,7.71984,2590.8,2590.6,0.06305406]
[1727309432023,3.85992,2590.8,2590.6,0.10088255]
[1727309432425,3.85996,2590.7,2590.6,0.10088255]
[1727309432621,3.8599,2590.8,2590.6,0.10088255]
[1727309433557,3.85996,2590.7,2590.6,0.10088255]
[1727309433740,3.8599,2590.8,2590.6,0.10088255]
[1727309434636,3.85966,2590.9,2590.6,0.10088255]
[1727309435541,3.85951,2591.0,2590.6,3.96095255]
[1727309435750,0.9358,2591.2,2590.6,3.96095255]
[1727309436266,3.85936,2591.1,2590.6,3.96095255]
[1727309436729,3.85936,2591.1,2590.7,0.9956]
[1727309436925,3.85936,2591.1,2590.8,0.10076588]
[1727309437149,3.85935,2591.2,2590.7,0.9956]
[1727309437355,3.85935,2591.2,2590.9,0.10076588]
[1727309437581,3.85935,2591.2,2590.7,4.85554]
[1727309437768,3.85931,2591.2,2591.0,0.10076588]
[1727309438182,3.8593,2591.2,2590.7,0.9956]
[1727309438487,3.85936,2591.1,2590.7,0.9956]
[1727309438989,3.85927,2591.2,2590.7,4.85554]
[1727309439188,3.85927,2591.2,2590.7,0.9956]
[1727309439362,3.85915,2591.3,2590.7,4.9326715]
[1727309439689,3.85926,2591.2,2590.7,4.9326715]
[1727309439892,3.85926,2591.2,2590.7,4.85548]
[1727309440490,3.85915,2591.3,2590.7,4.85548]
[1727309440708,3.85891,2591.4,2590.9,3.85962]
[1727309440854,3.85887,2591.5,2591.0,0.9599]
[1727309441054,4.83494,2591.9,2591.2,0.9599]
[1727309441256,3.85856,2591.7,2591.2,4.89627608]
[1727309441460,3.85854,2591.7,2591.2,1.03707608]
[1727309441661,3.85854,2591.7,2591.2,4.89627608]
[1727309442199,3.85863,2591.6,2591.2,1.03707608]
[1727309442894,3.85863,2591.6,2591.2,0.9599]
[1727309444265,3.85842,2591.8,2591.2,4.8191]
[1727309444468,3.85847,2591.7,2591.2,4.8191]
[1727309445258,3.85847,2591.7,2591.2,0.9599]
[1727309445458,3.85847,2591.7,2591.2,1.0370752]
[1727309448301,3.85884,2591.5,2591.2,0.9599]
[1727309448466,3.85915,2591.3,2591.0,4.0068]
[1727309448660,3.85906,2591.4,2591.0,1.0068]
[1727309449574,3.85907,2591.3,2591.1,0.09999825]
[1727309449872,3.85906,2591.4,2591.1,0.09999825]
[1727309450589,3.85912,2591.3,2591.1,0.09999825]
[1727309451010,3.85891,2591.4,2591.1,0.09999825]
[1727309451700,3.85906,2591.3,2591.1,0.09999825]
[1727309451881,4.85541,2591.4,2591.1,0.09999825]
[1727309452397,3.8592,2591.3,2590.8,4.86927]
[1727309452558,3.8592,2591.3,2591.2,0.09930833]
[1727309452764,4.85541,2591.4,2590.8,1.0095]
[1727309453061,3.85906,2591.3,2591.2,0.09951235]
[1727309453262,3.85906,2591.3,2590.8,1.0095]
[1727309453488,3.85906,2591.3,2591.2,0.09951235]
[1727309453701,3.85906,2591.3,2590.8,4.86927]
[1727309453879,3.85906,2591.3,2591.2,0.09951235]
[1727309454086,3.85906,2591.3,2590.8,4.86927]
[1727309454087,4.730507,2591.3,2590.8,4.86927]
[1727309454262,3.85906,2591.3,2591.2,0.09951235]
[1727309454800,3.85906,2591.3,2590.8,4.86927]
[1727309454960,7.49190783,2591.3,2591.2,0.09951235]
[1727309455166,7.49190783,2591.3,2590.3,0.9484]
[1727309455167,3.8601,2590.6,2590.3,0.9484]
[1727309455505,3.8601,2590.6,2590.5,55.0]
[1727309457283,4.85157,2590.7,2590.5,55.0]
[1727309457513,3.85983,2590.8,2590.5,55.0]
[1727309458975,3.86006,2590.7,2590.5,55.0]
[1727309459213,3.8601,2590.6,2590.5,55.0]
[1727309461177,4.8728,2590.6,2590.5,55.0]
[1727309461821,5.4228,2590.6,2590.5,55.0]
[1727309462019,8.4228,2590.6,2590.5,55.0]
[1727309462315,10.01436978,2590.6,2590.5,55.0]
[1727309464087,4.8728,2590.6,2590.5,55.08441074]
[1727309465518,5.4228,2590.6,2590.5,55.08441074]
[1727309468010,4.8728,2590.6,2590.5,55.08441074]
[1727309468643,3.8601,2590.6,2590.5,55.08441074]
[1727309469139,5.09532978,2590.6,2590.5,55.08441074]
[1727309470927,3.85952,2591.0,2590.5,55.08441074]
[1727309471242,3.8601,2590.6,2590.5,55.08441074]
[1727309474347,8.4244,2590.6,2590.5,55.08441074]
[1727309474549,8.4244,2590.6,2590.5,55.0]
[1727309474711,10.01611978,2590.6,2590.5,55.08472187]
[1727309475327,10.01611978,2590.6,2590.5,41.16805621]
[1727309475664,10.01611978,2590.6,2590.5,6.85864561]
[1727309475866,10.01611978,2590.6,2590.5,6.32114057]
[1727309476022,10.01611978,2590.6,2590.5,6.2364187]
[1727309476641,10.42025728,2590.6,2590.5,6.2364187]
[1727309477942,10.01611978,2590.6,2590.5,6.2364187]
[1727309479125,13.09895761,2590.6,2590.5,6.2364187]
[1727309481762,13.64895761,2590.6,2590.5,6.2364187]
[1727309488646,3.86174,2589.6,2589.1,0.926]
[1727309488833,3.86174,2589.6,2589.2,0.78655724]
[1727309489038,3.86174,2589.6,2589.2,0.86073566]
[1727309493552,3.86147,2589.7,2589.2,0.86073566]
[1727309494005,3.86125,2589.9,2589.4,0.9214]
[1727309494323,3.86096,2590.1,2589.5,4.78313]
[1727309494626,3.86096,2590.1,2589.6,0.84159678]
[1727309494627,3.86106,2590.0,2589.6,0.84159678]
[1727309495211,3.86115,2589.9,2589.7,0.07449942]
[1727309495372,3.86074,2590.2,2589.7,0.07449942]
[1727309495707,3.86074,2590.2,2589.8,1.0154]
[1727309496082,3.86074,2590.2,2589.9,0.07589941]
[1727309496813,3.86088,2590.1,2589.9,0.07589941]
[1727309497824,7.72182,2590.1,2589.9,0.07589941]
[1727309498023,3.861,2590.0,2589.9,0.07589941]
[1727309498894,3.86088,2590.1,2589.9,0.07589941]
[1727309499099,4.8123,2590.0,2589.9,0.07589941]
[1727309499280,3.861,2590.0,2589.9,0.07589941]
[1727309499482,3.86137,2589.8,2589.5,1.0154]
[1727309500394,7.72278,2589.8,2589.5,1.0154]
[1727309501189,3.86137,2589.8,2589.5,1.0154]
[1727309503111,3.86109,2590.0,2589.5,1.0154]
[1727309503316,3.86131,2589.8,2589.5,1.0154]
[1727309505239,3.86147,2589.7,2589.5,1.0154]
[1727309505416,7.72274,2589.8,2589.5,1.0154]
[1727309505620,3.86131,2589.8,2589.5,1.0154]
[1727309506219,7.72217,2590.0,2589.5,1.0154]
[1727309506438,3.86106,2590.0,2589.5,1.0154]
[1727309506605,3.86116,2589.9,2589.5,1.0154]
[1727309506808,3.86106,2590.0,2589.5,1.0154]
[1727309507019,7.72219,2590.0,2589.5,1.0154]
[1727309507323,3.86116,2589.9,2589.5,1.0154]
[1727309507521,7.72215,2590.0,2589.5,4.87714]
[1727309507722,4.81207,2590.2,2589.6,3.86156]
[1727309507934,3.86096,2590.1,2589.5,5.75096]
[1727309508144,3.86096,2590.1,2589.6,4.436616]
[1727309508915,3.86096,2590.1,2589.6,0.575096]
[1727309509143,3.86077,2590.2,2589.6,0.575096]
[1727309509307,3.86086,2590.1,2589.6,4.436556]
[1727309509508,3.86077,2590.2,2589.8,0.9719]
[1727309509716,3.86087,2590.1,2589.8,0.9719]
[1727309510146,3.86087,2590.1,2589.9,0.07582159]
[1727309511839,3.86077,2590.2,2589.9,0.07582159]
[1727309514476,7.72157,2590.2,2589.9,0.07582159]
[1727309515057,3.86094,2590.1,2589.9,0.07582159]
[1727309516052,4.725357,2590.2,2589.9,0.07582159]
[1727309516355,3.86085,2590.1,2589.9,0.07582159]
[1727309520925,3.8605,2590.4,2590.0,0.961]
[1727309521120,3.86072,2590.2,2590.0,0.961]
[1727309521348,3.86072,2590.2,2590.1,0.07543248]
[1727309521935,3.86085,2590.1,2589.8,1.0081]
[1727309522464,3.86071,2590.2,2589.8,1.0081]
[1727309523528,3.86057,2590.3,2589.8,1.0081]
[1727309523734,4.246627,2590.3,2589.8,1.0081]
[1727309523933,3.86057,2590.3,2589.8,1.0081]
[1727309524464,7.72127,2590.3,2589.8,1.0081]
[1727309524624,3.86057,2590.3,2589.9,0.07529632]
[1727309524824,3.8604,2590.4,2589.9,3.93637632]
[1727309525149,2.83887653,2591.1,2590.5,0.9195]
[1727309525323,4.20226368,2591.3,2590.5,0.9195]
[1727309525324,4.70804078,2591.3,2590.8,0.9195]
[1727309525760,3.85924,2591.2,2590.8,0.9195]
[1727309526061,3.85924,2591.2,2590.9,0.07531577]
[1727309526263,3.8592,2591.3,2590.9,0.07531577]
[1727309526264,3.85936,2591.1,2590.9,0.07531577]
[1727309526861,3.8592,2591.3,2590.9,0.07531577]
[1727309527047,3.85883,2591.5,2591.0,0.9869]
[1727309527216,3.85883,2591.5,2591.0,4.84636]
[1727309527419,3.85883,2591.5,2591.1,0.07467406]
[1727309528349,7.7177,2591.5,2591.1,0.07467406]
[1727309528535,3.85883,2591.5,2591.1,0.07467406]
[1727309528859,8.489466,2591.5,2591.1,0.07467406]
[1727309529062,3.85883,2591.5,2591.1,0.07467406]
[1727309532339,3.85892,2591.4,2591.1,0.07467406]
[1727309532860,3.85883,2591.5,2591.1,0.07467406]
[1727309533229,3.85823,2591.9,2591.3,0.9687]
[1727309533428,3.85823,2591.9,2591.5,0.9687]
[1727309534130,7.71649,2591.9,2591.6,0.07309922]
[1727309534433,3.85823,2591.9,2591.6,0.07309922]
[1727309534669,3.85833,2591.8,2591.6,0.07309922]
[1727309534873,4.24775407,2591.9,2591.6,0.07309922]
[1727309535243,8.10602407,2591.9,2591.6,0.07309922]
[1727309536072,3.85833,2591.8,2591.6,0.07309922]
[1727309538030,3.89504074,2592.0,2591.6,0.07309922]
[1727309538266,0.03701074,2592.0,2591.7,1.2453]
[1727309538847,0.03701074,2592.0,2591.8,0.07309922]
[1727309539469,0.03701074,2592.0,2591.8,3.93129922]
[1727309539930,0.03701074,2592.0,2591.8,0.07309922]
[1727309543443,0.03701074,2592.0,2591.9,1.2993]
[1727309543642,0.03701074,2592.0,2591.9,5.15747]
[1727309543937,0.03701074,2592.0,2591.9,5.30635737]
[1727309544140,0.03701074,2592.0,2591.9,8.30635737]
[1727309544464,0.03701074,2592.0,2591.9,8.22920917]
[1727309544672,0.03701074,2592.0,2591.9,9.80123687]
[1727309545205,0.0374999,2592.7,2592.0,1.2818]
[1727309545336,0.0374999,2593.5,2593.2,1.2818]
[1727309545543,0.0374999,2593.5,2593.3,0.49146378]
[1727309545739,3.8933099,2593.5,2593.2,1.2818]
[1727309546169,0.0374999,2593.5,2593.2,1.2818]
[1727309546376,3.85626,2593.2,2592.6,1.3038]
[1727309546749,3.85626,2593.2,2592.6,5.1609]
[1727309547174,3.85626,2593.2,2592.6,1.3038]
[1727309547542,3.85656,2593.0,2592.3,5.10169]
[1727309547739,3.85656,2593.0,2592.4,3.85739]
[1727309547981,3.85656,2593.0,2592.4,4.753298]
[1727309548789,3.85687,2592.8,2592.4,0.895908]
[1727309549639,3.85707,2592.7,2592.3,1.2442]
[1727309549844,3.85687,2592.8,2592.3,1.2442]
[1727309551479,7.71383,2592.8,2592.3,1.2442]
[1727309551679,3.85698,2592.7,2592.3,1.2442]
[1727309552246,3.85687,2592.8,2592.3,1.2442]
[1727309552580,7.71382,2592.8,2592.3,1.2442]
[1727309552789,7.71381,2592.8,2592.3,1.2442]
[1727309552950,2.045381,2592.8,2592.0,1.2382]
[1727309553145,2.045381,2592.8,2592.0,5.09609]
[1727309553146,3.85726,2592.6,2592.0,5.09609]
[1727309553563,7.71453,2592.6,2592.0,5.09609]
[1727309553971,3.85726,2592.6,2592.0,5.09609]
[1727309554288,3.85731,2592.5,2592.0,1.2382]
[1727309554762,3.85731,2592.5,2592.1,0.06777913]
[1727309555082,3.85726,2592.6,2592.1,0.06777913]
[1727309555475,3.85731,2592.5,2592.1,0.06777913]
[1727309555861,3.8573,2592.5,2592.1,0.06777913]
[1727309556278,3.85726,2592.6,2592.1,0.06777913]
[1727309556475,3.85728,2592.5,2592.1,0.06777913]
[1727309557383,3.85726,2592.6,2592.1,0.06777913]
[1727309558093,3.85732,2592.5,2592.1,0.06777913]
[1727309559193,3.85726,2592.6,2592.1,0.06777913]
[1727309559596,3.8573,2592.5,2592.1,0.06777913]
[1727309559772,0.771456,2592.5,2592.1,0.06777913]
[1727309560084,3.85769,2592.3,2591.7,8.08988]
[1727309560295,3.85777,2592.2,2591.7,8.08988]
[1727309560588,3.8581,2592.0,2591.7,1.938856]
[1727309560892,3.8578,2592.2,2591.6,6.85853]
[1727309561066,7.71562,2592.2,2591.6,6.85853]
[1727309561471,3.8578,2592.2,2591.6,6.85853]
[1727309561656,7.71561,2592.2,2591.6,6.85853]
[1727309561859,3.8578,2592.2,2591.6,6.85853]
[1727309562084,7.71561,2592.2,2591.6,6.85853]
[1727309562294,7.71561,2592.2,2591.7,1.2198]
[1727309562651,3.8578,2592.2,2591.7,1.2198]
[1727309563016,3.85799,2592.1,2591.7,1.2198]
[1727309563903,3.8578,2592.2,2591.7,1.2198]
[1727309563904,3.85806,2592.0,2591.7,1.2198]
[1727309564259,7.71622,2592.0,2591.5,5.11036]
[1727309564655,3.85806,2592.0,2591.5,5.11036]
[1727309565297,7.71619,2592.0,2591.5,5.11036]
[1727309565468,4.37324,2592.2,2591.6,3.85851]
[1727309565674,3.85795,2592.1,2591.5,5.11036]
[1727309565982,3.85818,2591.9,2591.5,1.2517]
[1727309566580,3.85848,2591.7,2591.5,1.2517]
[1727309567261,3.85818,2591.9,2591.5,1.2517]
[1727309567262,3.85834,2591.8,2591.5,1.2517]
[1727309567659,3.85833,2591.8,2591.5,1.2517]
[1727309567860,3.85818,2591.9,2591.5,1.2517]
[1727309569783,3.85818,2591.9,2591.6,0.06878783]
[1727309571291,3.85797,2592.1,2591.6,3.92739783]
[1727309571496,3.85797,2592.1,2591.6,4.44524561]
[1727309573511,3.85797,2592.1,2591.6,8.30378561]
[1727309573664,3.85797,2592.1,2591.6,4.44524561]
[1727309574100,3.85797,2592.1,2591.7,3.85846]
[1727309574264,7.71535,2592.3,2591.7,4.88317643]
[1727309574464,3.85763,2592.3,2591.8,1.284]
[1727309574797,3.85763,2592.3,2591.8,5.21147617]
[1727309575477,5.08205,2592.5,2591.8,5.21147617]
[1727309575702,3.85744,2592.4,2591.9,0.61670167]
[1727309575999,3.85735,2592.5,2591.9,0.61670167]
[1727309576000,3.85759,2592.3,2591.9,0.61670167]
[1727309576209,3.85759,2592.3,2592.0,0.06913706]
[1727309576981,7.71476,2592.5,2592.0,0.06913706]
[1727309577394,7.71473,2592.5,2592.0,0.06913706]
[1727309577582,3.85735,2592.5,2592.0,0.06913706]
[1727309577989,3.85751,2592.4,2592.0,0.06913706]
[1727309578192,3.85735,2592.5,2592.0,0.06913706]
[1727309578409,3.85777,2592.2,2592.0,0.06913706]
[1727309578910,1.2817,2592.4,2591.8,1.284]
[1727309579066,3.85809,2592.0,2591.8,1.284]
[1727309579574,4.243105,2592.5,2591.8,5.14229]
[1727309579575,3.85772,2592.2,2591.8,5.14229]
[1727309579794,3.85761,2592.3,2591.8,5.14229]
[1727309580170,3.85736,2592.5,2591.9,3.85809]
[1727309580390,3.85744,2592.4,2591.9,3.85809]
[1727309580801,7.71478,2592.5,2591.9,3.85809]
[1727309580998,3.85736,2592.5,2591.9,3.85809]
[1727309581211,3.817895,2592.4,2591.9,4.758128]
[1727309581588,3.85764,2592.3,2591.9,0.900038]
[1727309582295,3.85772,2592.2,2591.8,1.284]
[1727309582898,3.85791,2592.1,2591.8,1.284]
[1727309583113,3.85817,2591.9,2591.5,4.2237]
[1727309584504,3.85817,2591.9,2591.6,0.06872958]
[1727309584702,3.85833,2591.8,2591.6,0.06872958]
[1727309585026,3.85817,2591.9,2591.6,0.06872958]
[1727309585331,3.85803,2592.0,2591.6,0.06872958]
[1727309585831,3.85822,2591.9,2591.6,0.06872958]
[1727309586041,3.85834,2591.8,2591.6,0.06872958]
[1727309586361,3.85847,2591.7,2591.6,0.06872958]
[1727309586688,3.85876,2591.5,2591.4,7.44]
[1727309586888,3.85872,2591.6,2591.0,3.85941]
[1727309587118,7.71743,2591.6,2591.0,5.494044]
[1727309587321,3.85888,2591.5,2591.0,5.494044]
[1727309587906,3.85879,2591.5,2591.0,5.494044]
[1727309589847,3.85879,2591.5,2591.0,1.634634]
[1727309589848,3.85896,2591.4,2591.0,1.634634]
[1727309590834,3.85879,2591.5,2591.0,1.634634]
[1727309591338,3.85879,2591.5,2591.0,5.494094]
[1727309592639,7.71765,2591.5,2591.0,1.634634]
[1727309592839,7.71765,2591.5,2590.9,5.04684]
[1727309593060,3.85879,2591.5,2591.0,3.85949]
[1727309593542,3.85879,2591.5,2590.9,8.90632]
[1727309594030,3.85879,2591.5,2590.9,8.90631]
[1727309594203,3.85879,2591.5,2591.0,0.890631]
[1727309594527,3.85879,2591.5,2591.0,4.750011]
[1727309595851,1.81277291,2591.4,2591.0,4.750011]
[1727309596050,3.85879,2591.5,2591.0,4.750011]
[1727309597127,3.85857,2591.7,2590.9,1.1872]
[1727309597128,3.85915,2591.3,2590.9,1.1872]
[1727309597330,7.71831,2591.3,2590.9,1.1872]
[1727309597553,3.85937,2591.1,2590.9,1.1872]
[1727309598157,3.85915,2591.3,2590.7,5.13175]
[1727309598369,3.85924,2591.2,2590.7,5.13175]
[1727309599661,3.85924,2591.2,2590.8,0.06963194]
[1727309600063,3.85924,2591.2,2590.7,5.13175]
[1727309600228,3.85924,2591.2,2590.9,0.06963194]
[1727309600431,3.85924,2591.2,2590.7,5.644925]
[1727309600672,3.85924,2591.2,2591.0,0.06963194]
[1727309600837,3.85924,2591.2,2590.7,5.13175]
[1727309601032,3.85924,2591.2,2591.1,0.06963194]
[1727309601555,3.85915,2591.3,2590.8,3.85975]
[1727309601759,3.85877,2591.5,2591.1,1.30812099]
[1727309601933,7.71764,2591.5,2591.1,1.2378]
[1727309602129,3.85877,2591.5,2591.2,0.07032099]
[1727309602432,3.85902,2591.4,2591.2,0.07032099]
[1727309604952,3.85901,2591.4,2591.2,0.07032099]
[1727309606475,3.85891,2591.4,2591.2,0.07032099]
[1727309606771,3.85906,2591.3,2591.2,0.07032099]
[1727309611761,3.85891,2591.4,2591.2,0.07032099]
[1727309614133,7.71762,2591.5,2591.2,0.07032099]
[1727309614255,3.85877,2591.5,2591.2,0.07032099]
[1727309617059,3.85906,2591.3,2591.2,0.07032099]
[1727309617263,4.87963216,2591.4,2590.7,1.2929]
[1727309617569,7.49044216,2591.1,2590.5,1.3157]
[1727309617793,3.85975,2590.9,2590.5,1.3157]
[1727309617971,3.85982,2590.8,2590.5,1.3157]
[1727309618317,0.771957,2590.8,2590.4,0.0374999]
[1727309618486,1.7731,2590.7,2590.4,0.0374999]
[1727309618667,3.85991,2590.8,2590.4,1.2740999]
[1727309618874,3.86012,2590.6,2590.4,1.2740999]
[1727309619072,3.85991,2590.8,2590.4,1.2740999]
[1727309619710,7.71981,2590.8,2590.4,1.2740999]
[1727309621785,3.86002,2590.7,2590.4,1.2740999]
[1727309622313,3.86017,2590.6,2590.4,1.2740999]
[1727309622816,3.86017,2590.6,2590.4,0.0374999]
[1727309623199,3.85999,2590.7,2590.4,0.0374999]
[1727309626815,7.72003,2590.7,2590.4,0.0374999]
[1727309627021,3.85999,2590.7,2590.4,0.0374999]
[1727309627795,7.72005,2590.7,2590.4,0.0374999]
[1727309627977,3.85999,2590.7,2590.4,0.0374999]
[1727309629242,7.72006,2590.7,2590.4,0.0374999]
[1727309629732,7.72006,2590.7,2590.5,0.06830771]
[1727309630135,3.85999,2590.7,2590.5,0.06830771]
[1727309635447,3.8601,2590.6,2590.5,0.06830771]
[1727309638442,5.309719,2590.6,2590.5,0.06830771]
[1727309642482,9.604119,2590.6,2590.5,0.06830771]
[1727309642868,4.41025,2590.5,2590.4,0.0374999]
[1727309644951,12.34078631,2590.5,2590.4,0.0374999]
[1727309645113,15.35526425,2590.5,2590.4,0.0374999]
[1727309645304,14.31187593,2590.5,2590.4,0.0374999]
[1727309645505,17.14298606,2590.5,2590.4,0.0374999]
[1727309646101,14.31187593,2590.5,2590.4,0.0374999]
[1727309647113,16.73517606,2590.5,2590.4,0.0374999]
[1727309647317,10.67713962,2590.5,2590.4,0.0374999]
[1727309647614,14.31187593,2590.5,2590.4,0.0374999]
[1727309658351,16.73346396,2590.5,2590.4,0.0374999]
[1727309659146,14.7160287,2590.5,2590.4,0.0374999]
[1727309659411,17.13818315,2590.5,2590.4,0.0374999]
[1727309659613,16.73403038,2590.5,2590.4,0.0374999]
[1727309659975,16.73404117,2590.5,2590.4,0.0374999]
[1727309660183,14.31187593,2590.5,2590.4,0.0374999]
[1727309660673,16.73427238,2590.5,2590.4,0.0374999]
[1727309661082,16.73427059,2590.5,2590.4,0.0374999]
[1727309661305,14.31187593,2590.5,2590.4,0.0374999]
[1727309663193,13.1008547,2590.5,2590.4,0.0374999]
[1727309663418,16.73559101,2590.5,2590.4,0.0374999]
[1727309663621,14.31187593,2590.5,2590.4,0.0374999]
[1727309666119,14.71603539,2590.5,2590.4,0.0374999]
[1727309669836,17.13971023,2590.5,2590.4,0.0374999]
[1727309670340,15.18425967,2590.5,2590.4,0.0374999]
[1727309670733,12.76050738,2590.5,2590.4,0.0374999]
[1727309671228,7.60445738,2590.5,2589.6,0.0374999]
[1727309671559,6.09073575,2589.7,2589.6,0.0374999]
[1727309676856,4.41145,2589.7,2589.6,1.3114999]
[1727309677060,3.86145,2589.7,2589.6,1.37258674]
[1727309677423,3.86145,2589.7,2589.6,1.3114999]
[1727309677623,3.86145,2589.7,2589.6,1.37258674]
[1727309677939,3.86132,2589.8,2589.6,1.37258674]
[1727309678138,3.86145,2589.7,2589.6,1.37258674]
[1727309688286,4.41145,2589.7,2589.6,1.37258674]
[1727309690569,10.92068505,2589.7,2589.6,0.09858674]
[1727309690958,8.48974597,2589.7,2589.6,0.0374999]
[1727309691359,7.28675783,2589.7,2589.6,0.0374999]
[1727309691659,12.69944597,2589.7,2589.6,0.0374999]
[1727309691848,15.54001987,2589.7,2589.6,0.0374999]
[1727309692047,12.69944597,2589.7,2589.6,0.0374999]
[1727309694875,15.53839789,2589.7,2589.6,0.0374999]
[1727309695572,12.69944597,2589.7,2589.6,0.0374999]
[1727309695777,15.5382833,2589.7,2589.6,0.0374999]
[1727309695964,12.69944597,2589.7,2589.6,0.0374999]
[1727309696953,11.48974597,2589.7,2589.6,0.0374999]
[1727309699707,7.852327,2589.7,2589.6,0.0374999]
[1727309699994,7.41145,2589.7,2589.6,0.0374999]
[1727309700367,6.29396303,2589.8,2589.6,1.2417999]
[1727309700561,3.8613,2589.8,2589.6,1.2417999]
[1727309701023,3.8613,2589.8,2589.7,1.26332278]
[1727309701326,3.86107,2590.0,2589.7,1.26332278]
[1727309701622,3.86107,2590.0,2589.8,1.2043]
[1727309701978,3.86107,2590.0,2589.9,0.05902278]
[1727309702316,3.86093,2590.1,2590.0,1.2623]
[1727309702818,3.86093,2590.1,2590.0,1.32070115]
[1727309703003,3.86093,2590.1,2590.0,1.2623]
[1727309703328,3.86093,2590.1,2590.0,1.32070115]
[1727309704520,3.86079,2590.2,2590.0,1.32070115]
[1727309704685,3.86085,2590.1,2590.0,1.32070115]
[1727309705629,7.72163,2590.2,2590.0,1.32070115]
[1727309705828,3.86079,2590.2,2590.0,1.32070115]
[1727309705982,3.86085,2590.1,2590.0,1.32070115]
[1727309708029,5.183014,2590.1,2590.0,0.05840115]
[1727309708183,3.8613,2589.8,2589.7,1.2417]
[1727309708531,3.8613,2589.8,2589.7,0.05840115]
[1727309710487,4.633546,2589.8,2589.7,0.05840115]
[1727309710722,5.183546,2589.8,2589.7,0.05840115]
[1727309714636,8.81936849,2589.8,2589.7,0.05840115]
[1727309716647,12.50543621,2589.8,2589.7,0.05840115]
[1727309718017,13.07486849,2589.8,2589.7,0.05840115]
[1727309718345,13.07486849,2589.8,2589.6,0.0374999]
[1727309718346,7.41145,2589.7,2589.6,0.0374999]
[1727309718509,9.44006923,2589.7,2589.6,0.0374999]
[1727309720746,11.87044938,2589.7,2589.6,0.0374999]
[1727309721050,9.44006923,2589.7,2589.6,0.0374999]
[1727309722517,11.87021204,2589.7,2589.6,0.0374999]
[1727309722729,9.44006923,2589.7,2589.6,0.0374999]
[1727309724327,12.31682015,2589.7,2589.6,0.0374999]
[1727309724569,15.1527812,2589.7,2589.6,0.0374999]
[1727309725443,15.1527812,2589.7,2588.9,0.0374999]
[1727309725445,4.41249,2589.0,2588.9,0.0374999]
[1727309725645,6.09244092,2589.0,2588.9,0.0374999]
[1727309726568,8.05362862,2589.0,2588.9,0.0374999]
[1727309727561,4.41249,2589.0,2588.9,0.0374999]
[1727309728173,3.86249,2589.0,2588.9,0.0374999]
[1727309729372,3.86249,2589.0,2588.9,1.2771999]
[1727309730072,3.86249,2589.0,2588.9,1.33215777]
[1727309732175,3.86249,2589.0,2588.9,1.2771999]
[1727309733257,3.86249,2589.0,2588.9,1.33187595]
[1727309733460,3.86249,2589.0,2588.9,1.2771999]
[1727309736569,3.86249,2589.0,2588.9,1.33192453]
[1727309738479,3.86215,2589.3,2588.9,1.33192453]
[1727309738682,2.42726001,2589.6,2588.9,1.33192453]
[1727309738998,3.86243,2589.1,2588.9,1.33192453]
[1727309739297,3.86216,2589.3,2588.9,1.33192453]
[1727309739460,3.86222,2589.2,2589.1,1.2605]
[1727309739979,3.86222,2589.2,2589.1,0.05456915]
[1727309740492,3.86249,2589.0,2588.9,1.2979999]
[1727309740997,3.86249,2589.0,2588.9,0.0374999]
[1727309742193,3.86236,2589.1,2589.0,1.2119]
[1727309748586,3.86249,2589.0,2588.9,0.0374999]
[1727309749557,3.86249,2589.0,2588.9,0.09196218]
[1727309751834,3.86236,2589.1,2588.9,0.09196218]
[1727309752305,3.86249,2589.0,2588.9,0.09196218]
[1727309754815,3.86222,2589.2,2589.0,1.2655]
[1727309755318,3.86222,2589.2,2589.1,0.05446228]
[1727309755922,3.86222,2589.2,2589.0,1.2655]
[1727309756102,3.86222,2589.2,2589.1,0.05446228]
[1727309756308,3.86222,2589.2,2589.0,1.2655]
[1727309756507,3.86222,2589.2,2589.1,0.05446228]
[1727309758619,3.86213,2589.3,2589.1,0.05446228]
[1727309758823,3.86182,2589.5,2589.2,1.2893]
[1727309759126,3.86199,2589.4,2589.3,0.05430683]
[1727309759326,3.86199,2589.4,2589.2,1.2893]
[1727309759535,3.86204,2589.3,2589.2,1.2893]
[1727309760504,3.86191,2589.4,2589.2,1.2893]
[1727309760695,3.86204,2589.3,2589.2,1.2893]
[1727309761837,3.86191,2589.4,2589.2,1.2893]
[1727309762546,3.86183,2589.5,2589.2,1.2893]
[1727309762842,3.86178,2589.5,2589.2,1.2893]
[1727309763044,3.86197,2589.4,2589.2,1.2893]
[1727309763413,1.67947253,2589.7,2589.2,1.2893]
[1727309763639,3.86173,2589.6,2589.2,1.2893]
[1727309763857,7.72346,2589.6,2589.2,1.2893]
[1727309764094,3.86173,2589.6,2589.2,1.2893]
[1727309764352,3.86176,2589.5,2589.2,1.2893]
[1727309764652,3.86176,2589.5,2589.3,0.05396678]
[1727309765157,3.86176,2589.5,2589.2,1.2893]
[1727309765329,3.86176,2589.5,2589.4,0.05396678]
[1727309765545,3.86176,2589.5,2589.2,1.2893]
[1727309765837,3.86176,2589.5,2589.3,0.05396678]